bitfinex-derivatives/quotes_SOLF0:USTF0_20240924
["timestamp","ask_amount","ask_price","bid_price","bid_amount"]
[1727186439455,41.4511,147.17,147.06,1.24933313]
[1727186439659,44.8485,147.17,147.11,3.3985]
[1727186439866,41.4511,147.17,147.06,38.18]
[1727186440065,41.4511,147.17,147.05,4.763]
[1727186440258,38.18,147.14,147.07,1.24921274]
[1727186440455,38.18,147.14,147.05,4.763]
[1727186440661,38.18,147.14,147.06,1.24942482]
[1727186440862,38.18,147.14,147.06,2.49888806]
[1727186441072,38.18,147.14,147.06,1.24942482]
[1727186441571,3.3983,147.13,147.07,3.3994]
[1727186441964,3.3984,147.12,147.07,3.3994]
[1727186442167,38.18,147.14,147.07,3.3994]
[1727186442364,38.18,147.14,147.06,4.64912482]
[1727186442676,3.3982,147.13,147.06,1.24942482]
[1727186442863,38.18,147.14,147.08,3.3991]
[1727186443264,38.18,147.14,147.06,1.24942482]
[1727186444168,38.18,147.14,147.07,1.249354]
[1727186444357,1.6557,147.16,147.06,1.24942482]
[1727186444563,5.0532,147.16,147.07,1.24936678]
[1727186444769,5.0532,147.16,147.08,1.24936678]
[1727186444969,3.2711,147.17,147.09,1.24936678]
[1727186445171,1.5997,147.17,147.13,3.3981]
[1727186445765,41.3877,147.24,147.11,38.18]
[1727186445965,1.648,147.23,147.13,38.18]
[1727186446276,1.648,147.23,147.19,3.3967]
[1727186446464,6.6034,147.24,147.19,3.3967]
[1727186446465,1.5794,147.24,147.19,3.3967]
[1727186446659,3.2763,147.29,147.18,38.18]
[1727186446862,4.8557,147.29,147.16,3.3471]
[1727186447067,38.18,147.2,147.13,1.652]
[1727186447271,3.3974,147.17,147.14,1.24880527]
[1727186447571,3.3974,147.17,147.11,3.3984]
[1727186447773,3.3974,147.17,147.12,1.24896064]
[1727186447968,3.3974,147.17,147.11,3.3984]
[1727186448362,3.3974,147.17,147.1,3.3988]
[1727186448675,38.18,147.16,147.05,1.652]
[1727186448877,38.18,147.16,147.06,1.24932209]
[1727186449078,3.3978,147.15,147.07,1.24932209]
[1727186449466,3.3978,147.15,147.09,3.3989]
[1727186449772,3.3978,147.15,147.05,1.652]
[1727186449970,3.3978,147.15,147.09,3.399]
[1727186450365,38.18,147.16,147.05,1.652]
[1727186450366,3.3975,147.16,147.06,38.18]
[1727186450566,38.18,147.18,147.09,3.3989]
[1727186451175,38.18,147.15,147.08,3.3992]
[1727186451675,38.18,147.13,147.04,3.2815]
[1727186451970,1.6132,147.12,147.05,1.24958745]
[1727186452175,1.6132,147.12,147.06,1.24949429]
[1727186452367,1.6132,147.12,147.02,1.6616]
[1727186452368,38.18,147.11,147.02,1.6616]
[1727186452570,3.1351,147.12,147.03,1.24959824]
[1727186452571,38.18,147.08,147.03,1.24959824]
[1727186452870,38.18,147.1,147.01,81.58]
[1727186453065,38.18,147.05,146.97,1.6616]
[1727186453277,38.18,147.05,147.02,1.24972598]
[1727186453471,38.18,147.06,146.94,1.5681]
[1727186453672,38.18,147.06,146.95,41.09155812]
[1727186453980,38.18,147.06,146.96,1.24995812]
[1727186454178,38.18,147.06,146.97,1.24995812]
[1727186454475,3.1351,147.12,146.95,5.0638]
[1727186454476,38.18,147.03,146.95,5.0638]
[1727186454679,38.18,147.03,146.96,1.25029415]
[1727186454878,38.18,147.06,146.97,1.25029415]
[1727186455180,38.18,147.06,146.98,1.25029415]
[1727186455370,38.18,147.06,146.95,1.6616]
[1727186455568,38.18,147.06,146.97,3.4017]
[1727186455775,38.18,147.06,146.98,1.25015651]
[1727186455975,38.18,147.06,146.99,3.4013]
[1727186456174,38.18,147.06,146.95,1.6616]
[1727186456379,41.5799,147.06,146.96,1.25004602]
[1727186456676,38.18,147.06,146.97,1.25004602]
[1727186456870,38.18,147.06,146.95,1.6616]
[1727186456871,4.9551,147.07,146.98,1.25004602]
[1727186457177,38.18,147.06,146.99,1.25004602]
[1727186457480,3.4004,147.04,146.95,1.6616]
[1727186457665,3.4004,147.04,146.96,1.25011271]
[1727186457872,38.18,147.06,146.97,1.25011271]
[1727186458072,38.18,147.06,146.98,1.25011271]
[1727186458377,38.18,147.06,146.99,3.4012]
[1727186458970,41.5798,147.06,146.95,1.6616]
[1727186459170,38.18,147.06,146.96,1.25013524]
[1727186459377,38.18,147.06,146.97,1.25013524]
[1727186459567,38.18,147.06,147.0,3.4011]
[1727186460073,38.18,147.06,146.95,39.8416]
[1727186460280,38.18,147.06,146.96,1.24999178]
[1727186460588,1.5554,147.07,146.95,39.8416]
[1727186460589,38.18,147.03,146.97,1.24999178]
[1727186460784,38.18,147.03,146.98,1.24999178]
[1727186460982,38.18,147.01,146.91,1.5826]
[1727186461177,3.4013,147.0,146.94,3.4025]
[1727186461374,3.4013,147.0,146.91,1.5826]
[1727186461375,38.18,147.01,146.91,1.5826]
[1727186461675,38.18,146.99,146.92,1.25018947]
[1727186461877,38.18,147.01,146.92,1.25018947]
[1727186462273,1.6708,147.04,146.93,3.4027]
[1727186462274,38.18,146.99,146.93,3.4027]
[1727186462479,38.18,146.99,146.93,1.25018947]
[1727186462681,38.18,147.0,146.93,1.25018947]
[1727186462979,38.18,146.96,146.93,1.25018947]
[1727186463279,3.4036,146.9,146.78,2.96993432]
[1727186463485,38.18,146.9,146.79,9.02500558]
[1727186463780,1.6461,146.95,146.8,1.25105768]
[1727186463781,38.18,146.88,146.8,1.25105768]
[1727186464077,38.18,146.92,146.8,42.76076091]
[1727186464270,39.8261,146.95,146.83,38.18]
[1727186464478,1.6493,146.98,146.9,38.18]
[1727186464674,41.3979,147.06,146.93,38.18]
[1727186464875,43.0472,147.06,146.93,38.18]
[1727186465184,4.8672,147.06,146.95,38.18]
[1727186465382,4.8672,147.06,146.96,1.25105768]
[1727186465686,38.18,147.05,146.97,1.25105768]
[1727186465983,38.18,147.03,146.91,4.804]
[1727186466189,38.18,147.03,146.92,1.25033122]
[1727186466375,38.18,147.03,146.93,1.25033122]
[1727186466575,38.18,147.0,146.91,1.5928]
[1727186466779,1.5819,146.99,146.92,1.25045308]
[1727186466979,1.5819,146.99,146.93,1.25045308]
[1727186467185,38.18,146.98,146.87,1.6585]
[1727186467372,1.5819,146.99,146.9,38.18]
[1727186467573,38.18,147.02,146.91,1.25052638]
[1727186467880,38.18,147.02,146.92,1.25052638]
[1727186467881,1.5819,147.01,146.92,1.25052638]
[1727186468184,1.5819,147.01,146.93,1.25052638]
[1727186468384,1.5819,147.01,146.95,3.4021]
[1727186468982,1.5819,147.01,146.96,3.402]
[1727186469185,1.5819,147.01,146.9,38.18]
[1727186469487,38.18,146.98,146.92,3.4029]
[1727186469787,38.18,146.98,146.87,1.6585]
[1727186470085,38.18,146.98,146.92,3.4028]
[1727186470482,3.4016,146.99,146.79,6.791]
[1727186470483,38.18,146.93,146.79,6.791]
[1727186470684,38.18,146.89,146.84,3.4048]
[1727186470982,38.18,146.89,146.81,1.5752]
[1727186471189,38.18,146.89,146.86,3.4044]
[1727186471383,1.6292,146.92,146.81,39.7552]
[1727186471587,1.6292,146.92,146.84,38.18]
[1727186471787,1.6292,146.92,146.91,3.4032]
[1727186472181,38.18,146.96,146.91,3.4032]
[1727186472382,39.8148,146.96,146.9,3.4034]
[1727186472790,39.8148,146.96,146.84,38.18]
[1727186473096,39.8148,146.96,146.85,1.25089813]
[1727186473388,1.6348,146.96,146.86,39.43089813]
[1727186473579,1.6348,146.96,146.94,3.4025]
[1727186473781,38.18,147.01,146.91,38.18]
[1727186474178,43.0489,147.06,146.93,38.18]
[1727186474380,43.0489,147.06,146.95,38.18]
[1727186474587,4.8689,147.06,146.98,38.18]
[1727186474887,1.6348,147.06,146.94,6.50076387]
[1727186475089,39.8148,147.06,146.94,6.50076387]
[1727186475287,39.8148,147.06,146.94,44.68076387]
[1727186475586,43.2146,147.06,146.94,48.1231]
[1727186475987,1.6348,147.06,146.96,38.18]
[1727186476182,1.6348,147.06,146.99,3.4014]
[1727186476387,1.6348,147.06,146.94,48.1231]
[1727186476787,1.6348,147.06,146.95,1.25011275]
[1727186477087,1.5731,147.08,146.98,38.18]
[1727186477290,1.5731,147.08,146.96,1.5916]
[1727186477496,38.18,147.07,146.96,1.5916]
[1727186477988,38.18,147.04,146.98,3.4016]
[1727186478191,41.5804,147.04,146.94,3.1521]
[1727186478496,38.18,147.04,146.95,3.4022]
[1727186478693,38.18,147.02,146.94,1.5248]
[1727186479289,38.18,147.04,146.94,1.5248]
[1727186479796,38.18,147.06,146.94,39.7048]
[1727186480094,38.18,147.06,146.95,1.5755]
[1727186480782,3.4002,147.04,146.95,1.5755]
[1727186480986,38.18,147.04,146.95,1.5755]
[1727186481296,3.4009,147.01,146.96,3.402]
[1727186481598,38.18,147.01,146.91,1.5341]
[1727186481894,38.18,147.06,146.97,3.4018]
[1727186481895,41.5806,147.03,146.97,3.4018]
[1727186482287,38.18,147.06,146.94,38.18]
[1727186484088,1.5731,147.08,147.05,3.3998]
[1727186484295,1.6111,147.09,146.99,38.18]
[1727186484492,38.18,147.07,146.95,38.18]
[1727186484696,3.4,147.05,147.0,3.4011]
[1727186485191,1.6751,147.06,147.01,3.4007]
[1727186485690,1.6111,147.09,147.0,38.18]
[1727186486099,1.5189,147.11,147.02,38.18]
[1727186486288,1.5809,147.13,147.09,3.3989]
[1727186486801,1.5809,147.13,147.1,3.3987]
[1727186486994,41.5775,147.16,147.1,3.3987]
[1727186487194,38.18,147.16,147.04,38.18]
[1727186487390,1.6115,147.17,147.03,1.6297]
[1727186487391,38.18,147.14,147.03,1.6297]
[1727186487898,3.3987,147.11,147.06,3.3996]
[1727186488091,3.3987,147.11,147.03,1.6297]
[1727186488299,38.18,147.12,147.03,1.6297]
[1727186488504,3.3991,147.09,147.04,3.4002]
[1727186488806,38.18,147.05,146.87,88.431]
[1727186489011,3.4004,147.04,146.98,3.4016]
[1727186489210,3.4004,147.04,146.93,9.9329]
[1727186489211,38.18,147.05,146.94,38.18]
[1727186489417,1.5633,147.07,146.95,1.6293]
[1727186489712,3.269,147.08,146.99,38.18]
[1727186489912,1.5633,147.14,147.01,38.18]
[1727186490107,38.18,147.13,147.01,38.18]
[1727186491107,38.18,147.1,147.0,1.5982]
[1727186491402,3.399,147.1,147.01,38.18]
[1727186491607,38.18,147.13,147.01,39.7594]
[1727186491907,38.18,147.13,147.06,3.3997]
[1727186492109,4.8179,147.14,146.97,81.64]
[1727186492309,38.18,147.05,146.97,81.64]
[1727186492706,38.18,147.03,146.94,1.591]
[1727186493013,1.5889,147.02,146.9,38.18]
[1727186493605,3.4011,147.01,146.9,38.18]
[1727186493903,1.5889,147.02,146.9,38.18]
[1727186494109,4.9897,147.02,146.95,3.4021]
[1727186494422,1.5889,147.02,146.93,38.18]
[1727186494608,1.5889,147.02,146.94,1.5939]
[1727186495709,1.5275,147.07,146.95,38.18]
[1727186496016,3.1585,147.07,146.95,41.3152]
[1727186496408,3.4,147.05,146.98,3.4014]
[1727186496604,3.1585,147.07,146.95,3.1352]
[1727186496809,38.18,147.03,146.95,1.5284]
[1727186497007,38.18,147.01,146.87,6.791]
[1727186497208,38.18,147.01,146.89,6.791]
[1727186497412,38.18,147.01,146.89,13.34052681]
[1727186497605,1.5275,147.07,146.97,38.18]
[1727186497812,38.18,147.09,146.97,38.18]
[1727186498013,3.4012,147.0,146.93,3.4027]
[1727186498219,38.18,146.99,146.89,8.465]
[1727186498407,38.18,147.08,146.9,1.25028973]
[1727186498408,38.18,147.01,146.9,1.25028973]
[1727186498714,38.18,147.01,146.89,8.465]
[1727186498916,38.18,146.99,146.89,8.465]
[1727186499118,38.18,146.99,146.89,1.674]
[1727186499714,38.18,146.99,146.9,3.4034]
[1727186499913,1.6161,146.98,146.87,3.2786]
[1727186500313,1.6161,146.98,146.87,6.6825]
[1727186500515,38.18,146.94,146.86,81.62]
[1727186500711,1.6457,146.93,146.86,81.62]
[1727186500913,41.5832,146.92,146.84,3.4047]
[1727186501108,38.18,146.92,146.81,1.5211]
[1727186501323,3.26,146.93,146.81,8.06958058]
[1727186501523,3.26,146.93,146.82,38.18]
[1727186501714,1.6457,146.93,146.84,38.18]
[1727186502211,38.18,146.92,146.82,1.25101951]
[1727186502415,1.6457,146.93,146.82,39.43101951]
[1727186502619,1.6457,146.93,146.86,3.4043]
[1727186502918,1.6457,146.93,146.82,39.43101951]
[1727186503114,1.6143,146.97,146.87,38.18]
[1727186503115,39.7943,146.97,146.87,38.18]
[1727186503420,39.7943,146.97,146.86,38.18]
[1727186503813,1.6143,146.97,146.86,38.18]
[1727186504019,1.6143,146.97,146.82,1.25101951]
[1727186504020,1.5875,146.99,146.9,38.18]
[1727186504220,1.5875,146.99,146.91,1.578]
[1727186505216,1.5875,146.99,146.9,38.18]
[1727186505217,3.4016,146.98,146.9,3.4033]
[1727186505420,38.18,146.96,146.87,3.2804]
[1727186505618,1.5875,146.99,146.82,50.74021951]
[1727186505619,38.18,146.94,146.82,50.74021951]
[1727186505821,38.18,146.94,146.82,39.43101951]
[1727186506222,3.2573,146.97,146.82,1.25101951]
[1727186506223,38.18,146.91,146.82,1.25101951]
[1727186506826,38.18,146.91,146.85,3.4046]
[1727186507325,39.8185,146.91,146.82,1.25101951]
[1727186507530,38.18,146.89,146.8,4.9464]
[1727186507923,3.4039,146.89,146.82,3.4051]
[1727186508323,41.5839,146.89,146.82,3.4051]
[1727186508524,41.5839,146.89,146.83,3.405]
[1727186508722,1.6385,146.91,146.81,38.18]
[1727186509018,39.8185,146.91,146.8,4.9464]
[1727186509329,1.6385,146.91,146.82,38.18]
[1727186509523,1.6385,146.91,146.8,4.9464]
[1727186509822,5.0418,146.91,146.84,3.4046]
[1727186510123,1.6385,146.91,146.83,3.4049]
[1727186510317,39.8185,146.91,146.8,4.9464]
[1727186510513,39.8185,146.91,146.8,1.6687]
[1727186510514,1.6179,146.9,146.8,1.6687]
[1727186510723,3.4047,146.85,146.75,41.449]
[1727186510928,38.18,146.89,146.77,38.18]
[1727186511821,3.4044,146.87,146.8,3.4056]
[1727186512020,38.18,146.86,146.75,1.6614]
[1727186512225,38.18,146.84,146.73,1.5185]
[1727186512426,5.026,146.83,146.73,1.5185]
[1727186512625,1.6207,146.83,146.73,1.5185]
[1727186512924,1.6207,146.83,146.75,3.4069]
[1727186513125,4.8228,146.83,146.75,3.4069]
[1727186513424,38.18,146.82,146.73,1.5185]
[1727186513617,4.8228,146.83,146.73,1.5185]
[1727186513821,4.8228,146.83,146.76,3.4067]
[1727186514232,43.0028,146.83,146.73,1.5185]
[1727186514723,38.18,146.81,146.72,81.68]
[1727186514929,4.8228,146.83,146.7,38.18]
[1727186515126,38.18,146.81,146.7,38.18]
[1727186515327,38.18,146.81,146.67,4.63]
[1727186515328,38.18,146.79,146.67,42.81]
[1727186515623,38.18,146.79,146.68,1.25224997]
[1727186515830,41.586,146.79,146.68,1.25224997]
[1727186516020,43.0028,146.83,146.7,38.18]
[1727186516433,38.18,146.8,146.7,38.18]
[1727186517029,43.0028,146.83,146.7,38.18]
[1727186517326,43.0028,146.83,146.64,81.7]
[1727186517327,38.18,146.77,146.64,81.7]
[1727186517525,4.7231,146.76,146.64,81.7]
[1727186517933,3.4074,146.74,146.67,3.4086]
[1727186518130,4.7231,146.76,146.62,42.8952]
[1727186518324,4.7231,146.76,146.64,38.18]
[1727186518530,4.7231,146.76,146.67,38.18]
[1727186519233,3.407,146.75,146.69,3.4082]
[1727186519531,4.7231,146.76,146.64,38.18]
[1727186519834,38.18,146.81,146.71,38.18]
[1727186520030,1.5824,146.82,146.71,38.18]
[1727186520534,1.5824,146.82,146.72,1.66]
[1727186520834,1.5824,146.82,146.77,3.4063]
[1727186521035,1.5824,146.82,146.69,38.18]
[1727186521237,38.18,146.79,146.69,38.18]
[1727186521425,1.5471,146.78,146.67,3.2226]
[1727186521828,39.8109,146.77,146.64,38.18]
[1727186522033,38.18,146.74,146.63,1.6203]
[1727186522235,39.8109,146.77,146.64,38.18]
[1727186522534,39.8109,146.77,146.63,1.6203]
[1727186522832,1.5471,146.78,146.68,38.18]
[1727186523039,1.5471,146.78,146.68,39.43244288]
[1727186523228,39.7271,146.78,146.68,1.25244288]
[1727186523425,38.18,146.75,146.68,1.25244288]
[1727186523631,1.5471,146.78,146.68,39.43244288]
[1727186524339,38.18,146.76,146.68,1.25244288]
[1727186525235,39.7271,146.78,146.68,1.25244288]
[1727186525532,1.5471,146.78,146.69,38.18]
[1727186525933,1.5471,146.78,146.73,3.4072]
[1727186526232,1.5471,146.78,146.69,39.8449]
[1727186526434,1.6309,146.81,146.71,38.18]
[1727186526633,3.4058,146.8,146.74,3.4072]
[1727186526938,39.8109,146.81,146.7,1.5828]
[1727186527138,3.4061,146.79,146.73,3.4072]
[1727186527341,39.8109,146.81,146.73,3.4072]
[1727186527645,39.8109,146.81,146.7,1.5828]
[1727186527832,1.5824,146.82,146.7,1.5828]
[1727186527833,1.5824,146.82,146.71,38.18]
[1727186528028,1.5404,146.85,146.7,1.5828]
[1727186528029,1.6716,146.84,146.74,38.18]
[1727186528239,1.5404,146.85,146.76,38.18]
[1727186528433,1.5404,146.85,146.77,3.1231]
[1727186528635,1.5404,146.85,146.77,4.6818]
[1727186528937,38.18,146.83,146.63,3.33549952]
[1727186529137,1.5404,146.85,146.71,1.5587]
[1727186529138,38.18,146.81,146.71,1.5587]
[1727186529340,38.18,146.81,146.72,1.5898]
[1727186529536,38.18,146.79,146.72,1.5898]
[1727186529741,38.18,146.79,146.74,3.407]
[1727186529937,3.4059,146.8,146.72,1.5898]
[1727186530143,38.18,146.81,146.72,3.1617]
[1727186530446,3.4059,146.8,146.73,3.4072]
[1727186530636,38.18,146.81,146.73,3.4072]
[1727186530940,38.18,146.81,146.72,3.1617]
[1727186531936,3.406,146.79,146.73,3.4072]
[1727186532243,38.18,146.78,146.72,1.5719]
[1727186532551,38.18,146.76,146.68,1.5442]
[1727186533055,3.4073,146.74,146.68,1.5442]
[1727186533544,38.18,146.73,146.65,3.1107]
[1727186533749,41.5876,146.73,146.67,3.4086]
[1727186533938,38.18,146.73,146.65,3.1107]
[1727186534334,39.8082,146.75,146.65,41.2907]
[1727186534643,20.4,146.85,146.65,41.2907]
[1727186534644,38.18,146.8,146.67,38.18]
[1727186534853,3.4062,146.78,146.72,3.4075]
[1727186535145,3.1812,146.83,146.67,38.18]
[1727186535146,38.18,146.77,146.67,38.18]
[1727186535342,38.18,146.75,146.68,1.25260593]
[1727186535543,38.18,146.77,146.65,41.2907]
[1727186535842,3.1812,146.83,146.66,1.25261821]
[1727186536050,38.18,146.81,146.68,38.18]
[1727186536244,38.18,146.81,146.69,1.25261821]
[1727186536442,38.18,146.81,146.7,1.25261821]
[1727186536644,38.18,146.81,146.68,38.18]
[1727186536839,38.18,146.81,146.7,38.18]
[1727186537149,39.8082,146.83,146.72,38.18]
[1727186537344,38.18,146.86,146.74,38.18]
[1727186537741,38.18,146.86,146.73,4.8376]
[1727186538052,38.18,146.86,146.74,1.25214199]
[1727186538246,3.4048,146.85,146.78,3.4061]
[1727186538448,38.18,146.86,146.73,4.8376]
[1727186538648,38.18,146.86,146.74,1.25205798]
[1727186538843,38.18,146.86,146.75,38.18]
[1727186539247,38.18,146.83,146.73,4.8376]
[1727186539759,38.18,146.83,146.74,1.25208393]
[1727186540051,38.18,146.86,146.73,4.8376]
[1727186540052,38.18,146.81,146.73,4.8376]
[1727186541440,1.533,146.82,146.73,1.6301]
[1727186541441,38.18,146.78,146.73,1.6301]
[1727186541650,38.18,146.78,146.69,1.5496]
[1727186541854,38.18,146.73,146.62,86.4899]
[1727186542053,1.6469,146.77,146.62,86.4899]
[1727186542054,38.18,146.71,146.62,86.4899]
[1727186542648,38.18,146.71,146.65,3.4091]
[1727186542955,38.18,146.71,146.62,86.4899]
[1727186543256,38.18,146.71,146.63,1.25265098]
[1727186543457,38.18,146.71,146.65,3.4091]
[1727186543651,38.18,146.71,146.62,86.4899]
[1727186543854,38.18,146.71,146.66,3.4088]
[1727186544654,41.5874,146.73,146.66,3.4088]
[1727186544861,38.18,146.73,146.66,3.4088]
[1727186545041,38.18,146.73,146.62,86.4899]
[1727186545249,38.18,146.73,146.62,128.0472218]
[1727186545649,38.18,146.75,146.64,38.18]
[1727186545844,38.18,146.78,146.67,38.18]
[1727186546147,38.18,146.8,146.67,38.18]
[1727186546352,1.533,146.82,146.71,38.18]
[1727186546652,1.533,146.82,146.76,3.4065]
[1727186546854,1.533,146.82,146.72,4.7842]
[1727186547354,41.4867,146.85,146.73,38.18]
[1727186547557,41.4867,146.85,146.72,4.7842]
[1727186548352,41.4867,146.85,146.73,1.25205745]
[1727186548754,38.18,146.82,146.73,1.25205745]
[1727186549058,38.18,146.8,146.72,4.7842]
[1727186549257,38.18,146.8,146.67,38.18]
[1727186549558,38.18,146.8,146.68,1.25242317]
[1727186549957,1.653,146.81,146.69,38.18]
[1727186550158,38.18,146.79,146.7,1.25232586]
[1727186550459,38.18,146.77,146.66,38.18]
[1727186550671,38.18,146.77,146.67,1.25255458]
[1727186550959,3.4076,146.73,146.64,4.9036]
[1727186551152,38.18,146.7,146.65,1.25262305]
[1727186551345,79.92484745,146.76,146.62,81.78]
[1727186551346,38.18,146.75,146.63,38.18]
[1727186551546,3.1766,146.77,146.66,38.18]
[1727186552459,3.1766,146.77,146.68,38.18]
[1727186552460,1.5405,146.77,146.68,38.18]
[1727186552654,4.947,146.77,146.68,38.18]
[1727186553261,3.4069,146.76,146.69,3.4081]
[1727186553753,3.4069,146.76,146.66,38.18]
[1727186553754,3.407,146.75,146.68,3.4085]
[1727186553958,3.407,146.75,146.66,38.18]
[1727186554257,3.4072,146.74,146.64,41.3876]
[1727186554456,39.7205,146.77,146.64,41.3876]
[1727186554856,39.7205,146.77,146.69,3.4081]
[1727186555251,3.4071,146.75,146.68,3.4085]
[1727186555451,39.7205,146.77,146.64,41.3876]
[1727186555653,38.18,146.75,146.64,41.3876]
[1727186555862,3.4075,146.73,146.67,3.4086]
[1727186556253,38.18,146.75,146.64,41.3876]
[1727186556454,38.18,146.72,146.62,81.78]
[1727186556965,3.4083,146.7,146.64,3.4093]
[1727186557262,38.18,146.67,146.57,3.191]
[1727186557464,38.18,146.69,146.53,81.8]
[1727186557465,38.18,146.65,146.53,81.8]
[1727186557659,1.5234,146.64,146.54,1.25347089]
[1727186557856,1.5234,146.64,146.53,81.8]
[1727186558164,38.18,146.62,146.53,81.8]
[1727186558565,1.5234,146.64,146.48,1.6102]
[1727186558566,1.5234,146.64,146.51,3.4124]
[1727186558757,38.18,146.57,146.48,3.2176]
[1727186558954,39.7034,146.64,146.5,38.18]
[1727186559160,39.7034,146.64,146.55,38.18]
[1727186559161,1.5234,146.64,146.55,38.18]
[1727186559554,4.9329,146.64,146.55,38.18]
[1727186559962,1.5234,146.64,146.55,38.18]
[1727186560177,38.18,146.68,146.55,38.18]
[1727186560360,38.18,146.63,146.52,38.18]
[1727186560759,38.18,146.66,146.52,3.43455483]
[1727186560963,38.18,146.66,146.48,41.3976]
[1727186560964,38.18,146.66,146.56,38.18]
[1727186561159,3.4093,146.65,146.56,38.18]
[1727186561371,38.18,146.66,146.53,38.18]
[1727186561667,3.4089,146.67,146.6,3.4102]
[1727186561863,39.8277,146.68,146.55,38.18]
[1727186562073,39.8277,146.68,146.56,1.6105]
[1727186562276,38.18,146.65,146.56,1.6105]
[1727186562777,3.4093,146.65,146.59,3.4106]
[1727186562959,38.18,146.65,146.51,81.84]
[1727186563162,3.34675581,146.67,146.51,81.84]
[1727186563163,38.18,146.6,146.51,81.84]
[1727186563562,38.18,146.64,146.51,120.02]
[1727186563964,3.41,146.62,146.51,120.02]
[1727186564169,38.18,146.64,146.51,81.84]
[1727186564368,41.5909,146.58,146.51,3.4123]
[1727186564563,38.18,146.56,146.48,1.6102]
[1727186564967,1.6388,146.57,146.48,1.6102]
[1727186565370,1.6388,146.57,146.45,1.5477]
[1727186565568,38.18,146.52,146.43,1.5263]
[1727186566071,38.18,146.52,146.46,3.4136]
[1727186566270,38.18,146.52,146.43,1.5263]
[1727186566474,38.18,146.52,146.42,81.84]
[1727186566874,38.18,146.52,146.33,3.15]
[1727186567183,1.6266,146.51,146.42,3.4146]
[1727186567373,38.18,146.45,146.35,3.34380813]
[1727186567573,41.594,146.45,146.38,3.4155]
[1727186567778,38.18,146.45,146.33,41.33]
[1727186567975,38.18,146.48,146.36,38.18]
[1727186568278,1.5213,146.5,146.37,1.25499305]
[1727186568579,38.18,146.48,146.37,38.18]
[1727186568775,1.5213,146.5,146.38,1.25493869]
[1727186569177,3.37705297,146.54,146.42,38.18]
[1727186569381,3.37705297,146.54,146.43,1.5439]
[1727186569582,3.3334,146.61,146.45,38.18]
[1727186569583,38.18,146.58,146.45,38.18]
[1727186569772,3.4114,146.56,146.48,3.413]
[1727186569975,38.18,146.55,146.44,1.6466]
[1727186570181,1.6854,146.54,146.44,1.6466]
[1727186570386,38.18,146.53,146.43,3.1719]
[1727186570585,39.828,146.53,146.43,3.1719]
[1727186570883,1.6854,146.54,146.44,39.43444764]
[1727186571284,5.0973,146.54,146.46,3.4135]
[1727186571495,1.6854,146.54,146.43,3.1719]
[1727186571793,3.4129,146.5,146.44,1.25444973]
[1727186571974,38.18,146.5,146.38,3.214]
[1727186572171,38.18,146.5,146.38,4.7579]